[Event "***Titled Tuesday 3|2 Blitz"]
[Site "Chess.com"]
[Date "2017.02.07"]
[Round "2"]
[White "Entilza"]
[Black "RitvarsReimanis"]
[Result "1/2-1/2"]
[WhiteElo "2210"]
[BlackElo "2346"]
[TimeControl "180+2"]
[EndTime "13:26:26 PST"]
[Termination "Game drawn by agreement"]

1. d4 {[%clk 0:03:02]} 1... Nf6 {[%clk 0:02:59.7]} 2. c4 {[%clk 0:03:01]} 2...
e6 {[%clk 0:03:00.6]} 3. Nc3 {[%clk 0:03:01.5]} 3... Bb4 {[%clk 0:03:00.4]} 4.
e3 {[%clk 0:03:02.1]} 4... O-O {[%clk 0:03:00.8]} 5. Bd3 {[%clk 0:03:02.5]} 5...
c5 {[%clk 0:03:00.5]} 6. Ne2 {[%clk 0:03:03]} 6... d5 {[%clk 0:03:01.3]} 7. a3
{[%clk 0:03:03.6]} 7... Bxc3+ {[%clk 0:03:01.4]} 8. bxc3 {[%clk 0:03:04.3]} 8...
cxd4 {[%clk 0:03:00.5]} 9. cxd4 {[%clk 0:03:04.2]} 9... dxc4 {[%clk 0:03:00]}
10. Bxc4 {[%clk 0:03:04.4]} 10... b6 {[%clk 0:03:01.1]} 11. O-O {[%clk
0:03:01.8]} 11... Bb7 {[%clk 0:03:02.4]} 12. f3 {[%clk 0:03:01.5]} 12... Nc6
{[%clk 0:03:02.1]} 13. e4 {[%clk 0:02:59.7]} 13... Rc8 {[%clk 0:03:00.6]} 14.
Ba2 {[%clk 0:02:57.1]} 14... Ba6 {[%clk 0:03:00.6]} 15. d5 {[%clk 0:02:19.8]}
15... exd5 {[%clk 0:02:57.7]} 16. exd5 {[%clk 0:02:20.4]} 16... Nxd5 {[%clk
0:02:30.3]} 17. Bxd5 {[%clk 0:02:16.9]} 17... Bxe2 {[%clk 0:02:28.7]} 18. Bxf7+
{[%clk 0:02:13.3]} 18... Rxf7 {[%clk 0:02:30.6]} 19. Qxe2 {[%clk 0:02:14.1]}
19... Nd4 {[%clk 0:01:35.5]} 20. Qe4 {[%clk 0:02:02.6]} 20... Re7 {[%clk
0:01:14.9]} 21. Bg5 {[%clk 0:02:01.8]} 21... Rxe4 {[%clk 0:01:01.6]} 22. Bxd8
{[%clk 0:02:02]} 22... Re2 {[%clk 0:01:00.8]} 23. Bh4 {[%clk 0:02:02.1]} 23...
Rcc2 {[%clk 0:00:48]} 24. Rf2 {[%clk 0:02:02.1]} 24... g5 {[%clk 0:00:25.4]} 25.
Bg3 {[%clk 0:02:01.8]} 25... h5 {[%clk 0:00:25.5]} 26. h4 {[%clk 0:01:53.4]}
26... Nf5 {[%clk 0:00:14]} 27. Rxe2 {[%clk 0:01:37.2]} 27... Rxe2 {[%clk
0:00:15.9]} 28. Bf2 {[%clk 0:01:25.5]} 28... g4 {[%clk 0:00:17]} 29. fxg4 {[%clk
0:01:24]} 29... hxg4 {[%clk 0:00:18.9]} 30. g3 {[%clk 0:01:24.9]} 30... Rc2
{[%clk 0:00:16]} 31. Rd1 {[%clk 0:01:24.6]} 31... Rc3 {[%clk 0:00:16.2]} 32.
Rd8+ {[%clk 0:01:24.1]} 32... Kf7 {[%clk 0:00:16.5]} 33. Rd7+ {[%clk 0:01:24.9]}
33... Kg6 {[%clk 0:00:16.6]} 34. Rxa7 {[%clk 0:01:24]} 34... Nxg3 {[%clk
0:00:17.9]} 35. Ra6 {[%clk 0:01:19.2]} 35... Ne2+ {[%clk 0:00:16.4]} 36. Kf1
{[%clk 0:01:19.4]} 36... Nf4 {[%clk 0:00:17.4]} 37. Rxb6+ {[%clk 0:01:19.8]}
37... Kh5 {[%clk 0:00:18.7]} 38. Rb5+ {[%clk 0:01:20]} 38... Kg6 {[%clk
0:00:19.9]} 39. Rg5+ {[%clk 0:01:20.1]} 39... Kh6 {[%clk 0:00:17.8]} 40. Rxg4
{[%clk 0:01:21]} 40... Rc1+ {[%clk 0:00:17]} 41. Be1 {[%clk 0:01:21.6]} 41...
Nd3 {[%clk 0:00:18.1]} 42. Re4 {[%clk 0:01:21.9]} 42... Ra1 {[%clk 0:00:18.8]}
43. a4 {[%clk 0:01:15.3]} 43... Nb2 {[%clk 0:00:17.1]} 44. a5 {[%clk 0:01:14.7]}
44... Nd3 {[%clk 0:00:16.6]} 45. Re6+ {[%clk 0:01:12.9]} 45... Kh5 {[%clk
0:00:16.9]} 46. Re3 {[%clk 0:01:12]} 46... Nxe1 {[%clk 0:00:17.1]} 47. Rxe1
{[%clk 0:01:12.8]} 47... Rxa5 {[%clk 0:00:18.6]} 48. Re4 {[%clk 0:01:13.8]}
48... Ra2 {[%clk 0:00:19.4]} 49. Rd4 {[%clk 0:01:13.8]} 49... Rh2 {[%clk
0:00:19.8]} 50. Re4 {[%clk 0:01:13.4]} 1/2-1/2

[Event "***Titled Tuesday 3|2 Blitz"]
[Site "Chess.com"]
[Date "2017.02.07"]
[Round "2"]
[White "joppie2"]
[Black "Keranke"]
[Result "0-1"]
[WhiteElo "2537"]
[BlackElo "2656"]
[TimeControl "180+2"]
[EndTime "13:26:28 PST"]
[Termination "Keranke won on time"]

1. e4 {[%clk 0:03:02]} 1... g6 {[%clk 0:03:00.7]} 2. d4 {[%clk 0:03:01.7]} 2...
Bg7 {[%clk 0:02:59.8]} 3. Nc3 {[%clk 0:02:53.4]} 3... d6 {[%clk 0:03:00.4]} 4.
Be3 {[%clk 0:02:55]} 4... a6 {[%clk 0:03:01.1]} 5. h4 {[%clk 0:02:54]} 5... h6
{[%clk 0:03:02]} 6. Qd2 {[%clk 0:02:52.7]} 6... b5 {[%clk 0:03:02.4]} 7. f3
{[%clk 0:02:53.9]} 7... Nd7 {[%clk 0:02:57.5]} 8. O-O-O {[%clk 0:02:51.3]} 8...
Bb7 {[%clk 0:02:58.3]} 9. g4 {[%clk 0:02:50]} 9... Rc8 {[%clk 0:02:53.2]} 10. d5
{[%clk 0:02:48.7]} 10... c6 {[%clk 0:02:50.8]} 11. dxc6 {[%clk 0:02:49.4]} 11...
Bxc6 {[%clk 0:02:51.7]} 12. Nge2 {[%clk 0:02:40.2]} 12... Qa5 {[%clk 0:02:50]}
13. Kb1 {[%clk 0:02:37.6]} 13... Ngf6 {[%clk 0:02:28]} 14. Nd4 {[%clk
0:02:28.8]} 14... Bb7 {[%clk 0:02:24.3]} 15. Bd3 {[%clk 0:02:06.1]} 15... Ne5
{[%clk 0:02:14.3]} 16. g5 {[%clk 0:02:03.1]} 16... hxg5 {[%clk 0:02:07]} 17.
hxg5 {[%clk 0:02:05]} 17... Nh5 {[%clk 0:02:08.5]} 18. Qf2 {[%clk 0:01:41.3]}
18... Rxc3 {[%clk 0:02:05.3]} 19. bxc3 {[%clk 0:00:56.2]} 19... Qxc3 {[%clk
0:02:07.2]} 20. Qd2 {[%clk 0:00:56.6]} 20... Qc7 {[%clk 0:01:57.3]} 21. Be2
{[%clk 0:00:46]} 21... O-O {[%clk 0:01:42.2]} 22. Nb3 {[%clk 0:00:33.5]} 22...
Ng3 {[%clk 0:01:30.1]} 23. Rh3 {[%clk 0:00:24.5]} 23... Nxe2 {[%clk 0:01:30.8]}
24. Qxe2 {[%clk 0:00:26.4]} 24... Nc4 {[%clk 0:01:30.9]} 25. Bd4 {[%clk
0:00:27.9]} 25... e5 {[%clk 0:01:29.9]} 26. Bb2 {[%clk 0:00:20.7]} 26... Rc8
{[%clk 0:01:18.2]} 27. Rdh1 {[%clk 0:00:20.8]} 27... a5 {[%clk 0:00:52]} 28. Qh2
{[%clk 0:00:21.2]} 28... Kf8 {[%clk 0:00:53.4]} 29. Rh8+ {[%clk 0:00:22.3]}
29... Bxh8 {[%clk 0:00:39.6]} 30. Qxh8+ {[%clk 0:00:24.2]} 30... Ke7 {[%clk
0:00:41.5]} 31. Qf6+ {[%clk 0:00:25.4]} 31... Kd7 {[%clk 0:00:43.2]} 32. Qxf7+
{[%clk 0:00:26.4]} 32... Kc6 {[%clk 0:00:45.1]} 33. Qxc7+ {[%clk 0:00:14.9]}
33... Rxc7 {[%clk 0:00:47]} 34. Rh6 {[%clk 0:00:13.8]} 34... a4 {[%clk
0:00:46.4]} 35. Nc1 {[%clk 0:00:10.1]} 35... b4 {[%clk 0:00:43.4]} 36. Nd3
{[%clk 0:00:08.8]} 36... Nd2+ {[%clk 0:00:37.3]} 37. Kc1 {[%clk 0:00:09.8]}
37... Nxf3 {[%clk 0:00:39.2]} 38. Rxg6 {[%clk 0:00:09.6]} 38... Kb5 {[%clk
0:00:36.7]} 39. Rxd6 {[%clk 0:00:08.2]} 39... a3 {[%clk 0:00:37.8]} 40. Bxe5
{[%clk 0:00:06.6]} 40... Bxe4 {[%clk 0:00:39.3]} 0-1

[Event "***Titled Tuesday 3|2 Blitz"]
[Site "Chess.com"]
[Date "2017.02.07"]
[Round "2"]
[White "NoWuss2"]
[Black "ChessMavenYeti"]
[Result "0-1"]
[WhiteElo "2047"]
[BlackElo "2180"]
[TimeControl "180+2"]
[EndTime "13:26:30 PST"]
[Termination "ChessMavenYeti won by checkmate"]

1. e4 {[%clk 0:03:02]} 1... e6 {[%clk 0:03:00.7]} 2. Nf3 {[%clk 0:03:02.2]} 2...
d5 {[%clk 0:03:00.2]} 3. e5 {[%clk 0:03:03.3]} 3... c5 {[%clk 0:02:57.4]} 4. b4
{[%clk 0:03:04.9]} 4... c4 {[%clk 0:02:58.2]} 5. c3 {[%clk 0:03:05.6]} 5... a5
{[%clk 0:02:59]} 6. b5 {[%clk 0:03:06.2]} 6... a4 {[%clk 0:03:00.1]} 7. d3
{[%clk 0:03:06.9]} 7... cxd3 {[%clk 0:03:00]} 8. Bxd3 {[%clk 0:03:07.5]} 8...
Nd7 {[%clk 0:03:01]} 9. O-O {[%clk 0:03:06.4]} 9... Qc7 {[%clk 0:03:01.7]} 10.
Re1 {[%clk 0:03:06.7]} 10... Nb6 {[%clk 0:03:02.5]} 11. Qc2 {[%clk 0:02:47.7]}
11... Ne7 {[%clk 0:02:59.7]} 12. Ba3 {[%clk 0:02:29.1]} 12... Bd7 {[%clk
0:02:50.6]} 13. Bd6 {[%clk 0:02:16.5]} 13... Qc8 {[%clk 0:02:47.7]} 14. Nbd2
{[%clk 0:02:12.1]} 14... Ng6 {[%clk 0:02:40.7]} 15. Ng5 {[%clk 0:01:44.7]} 15...
Bxd6 {[%clk 0:02:29.8]} 16. exd6 {[%clk 0:01:46.6]} 16... Qc5 {[%clk 0:02:28.3]}
17. Nxh7 {[%clk 0:01:40.2]} 17... Nf4 {[%clk 0:02:17]} 18. g3 {[%clk 0:01:21.6]}
18... Nxd3 {[%clk 0:02:16.8]} 19. Qxd3 {[%clk 0:01:23.5]} 19... Bxb5 {[%clk
0:02:16.1]} 20. d7+ {[%clk 0:01:16.5]} 20... Nxd7 {[%clk 0:02:13.5]} 21. Qb1
{[%clk 0:01:09.8]} 21... Bc6 {[%clk 0:01:49.2]} 22. Ng5 {[%clk 0:01:03.5]} 22...
Qxc3 {[%clk 0:01:48]} 23. Ndf3 {[%clk 0:00:16.8]} 23... Qf6 {[%clk 0:01:26.6]}
24. h4 {[%clk 0:00:17.3]} 24... d4 {[%clk 0:01:26.3]} 25. Nxd4 {[%clk
0:00:16.9]} 25... Qxd4 {[%clk 0:01:25.5]} 26. Nxe6 {[%clk 0:00:12.7]} 26... fxe6
{[%clk 0:01:21.7]} 27. Qg6+ {[%clk 0:00:13.2]} 27... Kd8 {[%clk 0:01:21.7]} 28.
Rad1 {[%clk 0:00:13.1]} 28... Qf6 {[%clk 0:01:18.9]} 29. Qd3 {[%clk 0:00:12.9]}
29... Qf3 {[%clk 0:01:17.3]} 30. Qxf3 {[%clk 0:00:11.1]} 30... Bxf3 {[%clk
0:01:17.8]} 31. Rd3 {[%clk 0:00:12.1]} 31... Bd5 {[%clk 0:01:17.8]} 32. a3
{[%clk 0:00:11.1]} 32... Rf8 {[%clk 0:01:18]} 33. f4 {[%clk 0:00:11.4]} 33...
Nc5 {[%clk 0:01:18.7]} 34. Rd2 {[%clk 0:00:05.1]} 34... Ne4 {[%clk 0:01:19.1]}
35. Rd3 {[%clk 0:00:04.9]} 35... Nc5 {[%clk 0:01:15]} 36. Rd2 {[%clk 0:00:05.6]}
36... Kc7 {[%clk 0:01:15.3]} 37. Rc1 {[%clk 0:00:05.1]} 37... Kd6 {[%clk
0:01:15.8]} 38. Re1 {[%clk 0:00:04.3]} 38... b6 {[%clk 0:01:15.9]} 39. Kh2
{[%clk 0:00:05.2]} 39... Nb3 {[%clk 0:01:16.7]} 40. Rd3 {[%clk 0:00:05.1]} 40...
Rac8 {[%clk 0:01:17.4]} 41. Kh3 {[%clk 0:00:04]} 41... Rc2 {[%clk 0:01:15.9]}
42. Kg4 {[%clk 0:00:04.9]} 42... Kc5 {[%clk 0:01:13.9]} 43. f5 {[%clk
0:00:05.1]} 43... exf5+ {[%clk 0:01:13.8]} 44. Kg5 {[%clk 0:00:06.4]} 44... Be4
{[%clk 0:01:14.4]} 45. Rd7 {[%clk 0:00:06.1]} 45... Nd4 {[%clk 0:01:14.6]} 46.
Rc7+ {[%clk 0:00:05.3]} 46... Kd6 {[%clk 0:01:11.4]} 47. Ra7 {[%clk 0:00:05.6]}
47... Ne6+ {[%clk 0:01:11]} 48. Kg6 {[%clk 0:00:06.8]} 48... Rf6+ {[%clk
0:01:11.7]} 49. Kh7 {[%clk 0:00:07]} 49... Rh6+ {[%clk 0:01:12.4]} 50. Kg8
{[%clk 0:00:07.6]} 50... Rc8+ {[%clk 0:01:13.4]} 51. Kf7 {[%clk 0:00:07.9]}
51... Rf8# {[%clk 0:01:14.2]} 0-1

[Event "***Titled Tuesday 3|2 Blitz"]
[Site "Chess.com"]
[Date "2017.02.07"]
[Round "2"]
[White "Vamostodorecto"]
[Black "TricksOnly"]
[Result "0-1"]
[WhiteElo "2052"]
[BlackElo "2415"]
[TimeControl "180+2"]
[EndTime "13:26:31 PST"]
[Termination "TricksOnly won on time"]

1. d4 {[%clk 0:03:02]} 1... d6 {[%clk 0:02:59.6]} 2. c4 {[%clk 0:03:00.2]} 2...
e5 {[%clk 0:02:59.9]} 3. Nf3 {[%clk 0:03:00.6]} 3... e4 {[%clk 0:02:58.8]} 4.
Ng5 {[%clk 0:03:01.4]} 4... f5 {[%clk 0:03:00.3]} 5. Nc3 {[%clk 0:02:59.1]} 5...
Be7 {[%clk 0:03:01.6]} 6. h4 {[%clk 0:02:59.9]} 6... Nf6 {[%clk 0:02:58.8]} 7.
Bf4 {[%clk 0:02:57.5]} 7... O-O {[%clk 0:02:38.8]} 8. e3 {[%clk 0:02:58.4]} 8...
c6 {[%clk 0:02:22.1]} 9. Be2 {[%clk 0:02:56.2]} 9... Na6 {[%clk 0:02:21.1]} 10.
Nh3 {[%clk 0:02:53.8]} 10... Nc7 {[%clk 0:02:13.1]} 11. Bg3 {[%clk 0:02:49.8]}
11... Ne6 {[%clk 0:02:08.7]} 12. d5 {[%clk 0:02:39.5]} 12... Nc5 {[%clk
0:01:55.8]} 13. b4 {[%clk 0:02:24.8]} 13... Na6 {[%clk 0:01:50.3]} 14. Rb1
{[%clk 0:02:23.8]} 14... Nc7 {[%clk 0:01:49.5]} 15. Nf4 {[%clk 0:02:19.7]} 15...
Qe8 {[%clk 0:01:46.3]} 16. O-O {[%clk 0:02:16.9]} 16... Qf7 {[%clk 0:01:44.8]}
17. Qd2 {[%clk 0:02:01.9]} 17... Nd7 {[%clk 0:01:36.1]} 18. c5 {[%clk
0:01:56.7]} 18... Qf6 {[%clk 0:01:12.9]} 19. Nh5 {[%clk 0:01:18.6]} 19... Qh6
{[%clk 0:01:01.5]} 20. dxc6 {[%clk 0:01:17.1]} 20... Ne5 {[%clk 0:01:01]} 21.
Bf4 {[%clk 0:01:12.6]} 21... Qg6 {[%clk 0:00:59.7]} 22. cxb7 {[%clk 0:00:59.8]}
22... Bxb7 {[%clk 0:01:01.6]} 23. Ng3 {[%clk 0:00:52.6]} 23... Rad8 {[%clk
0:00:59]} 24. Qc2 {[%clk 0:00:38.3]} 24... Ne6 {[%clk 0:00:56.6]} 25. Bxe5
{[%clk 0:00:31.4]} 25... dxe5 {[%clk 0:00:56.5]} 26. h5 {[%clk 0:00:29.6]} 26...
Qg5 {[%clk 0:00:50.3]} 27. Bc4 {[%clk 0:00:26.8]} 27... Bc8 {[%clk 0:00:47.1]}
28. Qb3 {[%clk 0:00:24.7]} 28... Qh6 {[%clk 0:00:44.5]} 29. Rbd1 {[%clk
0:00:24.6]} 29... Kh8 {[%clk 0:00:43.7]} 30. Nd5 {[%clk 0:00:23.6]} 30... Bh4
{[%clk 0:00:42.4]} 31. Qc3 {[%clk 0:00:19.2]} 31... f4 {[%clk 0:00:34.2]} 32.
Nxe4 {[%clk 0:00:16.7]} 32... Qxh5 {[%clk 0:00:32]} 33. exf4 {[%clk 0:00:15.4]}
33... exf4 {[%clk 0:00:31.4]} 34. Nd6 {[%clk 0:00:16.1]} 34... Qg6 {[%clk
0:00:28.8]} 35. Nxc8 {[%clk 0:00:14]} 35... f3 {[%clk 0:00:29.3]} 36. Qxf3
{[%clk 0:00:05.4]} 36... Rxf3 {[%clk 0:00:29.2]} 37. Nd6 {[%clk 0:00:05.6]}
37... Rff8 {[%clk 0:00:26.4]} 38. Ne3 {[%clk 0:00:04.9]} 38... Nf4 {[%clk
0:00:26.4]} 0-1

[Event "***Titled Tuesday 3|2 Blitz"]
[Site "Chess.com"]
[Date "2017.02.07"]
[Round "2"]
[White "proxy6"]
[Black "Ilja_Semjonovs"]
[Result "1/2-1/2"]
[WhiteElo "2081"]
[BlackElo "2173"]
[TimeControl "180+2"]
[EndTime "13:26:43 PST"]
[Termination "Game drawn by repetition"]

1. e4 {[%clk 0:03:02]} 1... c5 {[%clk 0:02:58.8]} 2. Nf3 {[%clk 0:03:00.7]} 2...
d6 {[%clk 0:02:58.9]} 3. d4 {[%clk 0:03:02.2]} 3... cxd4 {[%clk 0:02:59.7]} 4.
Nxd4 {[%clk 0:03:04.1]} 4... Nf6 {[%clk 0:02:59.6]} 5. Nc3 {[%clk 0:03:05.3]}
5... a6 {[%clk 0:02:57.4]} 6. Be3 {[%clk 0:03:05.7]} 6... e5 {[%clk 0:02:57.6]}
7. Nb3 {[%clk 0:03:04.5]} 7... Be6 {[%clk 0:02:58.1]} 8. h3 {[%clk 0:03:05.4]}
8... Be7 {[%clk 0:02:46.2]} 9. Qf3 {[%clk 0:03:05.4]} 9... b5 {[%clk 0:02:40.5]}
10. O-O-O {[%clk 0:03:03.3]} 10... Nbd7 {[%clk 0:02:31.4]} 11. g4 {[%clk
0:03:03.1]} 11... h6 {[%clk 0:02:31.7]} 12. Qg2 {[%clk 0:02:57.2]} 12... Rc8
{[%clk 0:02:29.4]} 13. Kb1 {[%clk 0:02:57.4]} 13... Qc7 {[%clk 0:02:24.2]} 14.
f4 {[%clk 0:02:36]} 14... exf4 {[%clk 0:02:00.6]} 15. Bxf4 {[%clk 0:02:37.9]}
15... Ne5 {[%clk 0:02:01.4]} 16. Nd5 {[%clk 0:02:30.5]} 16... O-O {[%clk
0:01:24.7]} 17. Rg1 {[%clk 0:01:53.4]} 17... Nxd5 {[%clk 0:01:10]} 18. exd5
{[%clk 0:01:52.4]} 18... Bd7 {[%clk 0:01:10.8]} 19. Bd3 {[%clk 0:01:33.5]} 19...
Nxd3 {[%clk 0:01:09]} 20. Rxd3 {[%clk 0:01:35.4]} 20... Bf6 {[%clk 0:00:57.9]}
21. Rd2 {[%clk 0:01:22.7]} 21... Qc4 {[%clk 0:00:31.9]} 22. Bxd6 {[%clk
0:01:20.7]} 22... Rfe8 {[%clk 0:00:31.9]} 23. Qf1 {[%clk 0:00:52.1]} 23... Qe4
{[%clk 0:00:27.8]} 24. Qd1 {[%clk 0:00:46.6]} 24... Bg5 {[%clk 0:00:21.1]} 25.
Rd4 {[%clk 0:00:36.6]} 25... Qe3 {[%clk 0:00:18.3]} 26. Bg3 {[%clk 0:00:31.7]}
26... Bf6 {[%clk 0:00:12.6]} 27. Rd3 {[%clk 0:00:31.9]} 27... Qb6 {[%clk
0:00:13]} 28. Bf4 {[%clk 0:00:29]} 28... a5 {[%clk 0:00:12.3]} 29. Nd4 {[%clk
0:00:23.2]} 29... Bxd4 {[%clk 0:00:11.3]} 30. Rxd4 {[%clk 0:00:25.1]} 30... Rc4
{[%clk 0:00:10]} 31. Rxc4 {[%clk 0:00:17.4]} 31... bxc4 {[%clk 0:00:11.1]} 32.
Re1 {[%clk 0:00:14.5]} 32... Rxe1 {[%clk 0:00:06.8]} 33. Qxe1 {[%clk 0:00:16.4]}
33... Qd4 {[%clk 0:00:07.5]} 34. Qd2 {[%clk 0:00:14.8]} 34... Qg1+ {[%clk
0:00:07.7]} 35. Qc1 {[%clk 0:00:15.9]} 35... Qd4 {[%clk 0:00:08.8]} 36. Qd2
{[%clk 0:00:16.2]} 36... Qg1+ {[%clk 0:00:09.3]} 37. Qc1 {[%clk 0:00:17.2]}
37... Qd4 {[%clk 0:00:10.9]} 38. Qd2 {[%clk 0:00:04.3]} 38... Qg1+ {[%clk
0:00:11.5]} 1/2-1/2

[Event "***Titled Tuesday 3|2 Blitz"]
[Site "Chess.com"]
[Date "2017.02.07"]
[Round "2"]
[White "ShimanovAlex"]
[Black "Sethu0025"]
[Result "1-0"]
[WhiteElo "2648"]
[BlackElo "2545"]
[TimeControl "180+2"]
[EndTime "13:26:54 PST"]
[Termination "ShimanovAlex won by checkmate"]

1. d4 {[%clk 0:03:01.9]} 1... d5 {[%clk 0:03:01]} 2. Bf4 {[%clk 0:03:01.9]} 2...
Nf6 {[%clk 0:03:00.1]} 3. e3 {[%clk 0:03:02.5]} 3... c5 {[%clk 0:03:00.9]} 4.
Nd2 {[%clk 0:03:02.8]} 4... Qb6 {[%clk 0:03:01.1]} 5. dxc5 {[%clk 0:02:59.1]}
5... Qxb2 {[%clk 0:02:56.8]} 6. Rb1 {[%clk 0:02:57.4]} 6... Qc3 {[%clk
0:02:54.5]} 7. Bb5+ {[%clk 0:02:57.7]} 7... Bd7 {[%clk 0:02:48.1]} 8. Nf3 {[%clk
0:02:51]} 8... Qxc5 {[%clk 0:02:40]} 9. Bxd7+ {[%clk 0:02:49.7]} 9... Nbxd7
{[%clk 0:02:40.7]} 10. Rxb7 {[%clk 0:02:51.3]} 10... e6 {[%clk 0:02:38.5]} 11.
c4 {[%clk 0:02:26.3]} 11... Bd6 {[%clk 0:02:34.7]} 12. Nb3 {[%clk 0:01:46.4]}
12... Qc6 {[%clk 0:02:25.8]} 13. Na5 {[%clk 0:01:45.8]} 13... Qa6 {[%clk
0:02:20.6]} 14. Bxd6 {[%clk 0:01:43.5]} 14... Qxa5+ {[%clk 0:02:15.3]} 15. Qd2
{[%clk 0:01:40.3]} 15... Qa6 {[%clk 0:02:06.8]} 16. Qb4 {[%clk 0:01:36.7]} 16...
dxc4 {[%clk 0:01:49.5]} 17. Ne5 {[%clk 0:01:21.7]} 17... Rd8 {[%clk 0:01:31]}
18. Nxd7 {[%clk 0:01:06.5]} 18... Rxd7 {[%clk 0:00:56.8]} 19. Rb8+ {[%clk
0:01:02.8]} 19... Rd8 {[%clk 0:00:57.5]} 20. Rxd8+ {[%clk 0:00:54.9]} 20... Kxd8
{[%clk 0:00:58.1]} 21. Qb8+ {[%clk 0:00:51.4]} 21... Qc8 {[%clk 0:00:49.2]} 22.
Qxa7 {[%clk 0:00:51.7]} 22... Nd7 {[%clk 0:00:33.5]} 23. O-O {[%clk 0:00:49.1]}
23... c3 {[%clk 0:00:34.1]} 24. Rc1 {[%clk 0:00:46.2]} 24... c2 {[%clk
0:00:34.5]} 25. Qa4 {[%clk 0:00:43.9]} 25... Qc3 {[%clk 0:00:21.5]} 26. h3
{[%clk 0:00:32.6]} 26... Nb6 {[%clk 0:00:22.4]} 27. Qa7 {[%clk 0:00:27.6]} 27...
Qc6 {[%clk 0:00:20.7]} 28. Be5 {[%clk 0:00:22]} 28... Nd7 {[%clk 0:00:19]} 29.
Bb2 {[%clk 0:00:18]} 29... Ke7 {[%clk 0:00:20.2]} 30. Ba3+ {[%clk 0:00:18.7]}
30... Kf6 {[%clk 0:00:21.1]} 31. Qd4+ {[%clk 0:00:19.8]} 31... e5 {[%clk
0:00:22.2]} 32. Qh4+ {[%clk 0:00:20.4]} 32... Kg6 {[%clk 0:00:20.9]} 33. Qg4+
{[%clk 0:00:21.6]} 33... Kf6 {[%clk 0:00:21.7]} 34. Qh4+ {[%clk 0:00:16.4]}
34... Ke6 {[%clk 0:00:22.8]} 35. Qe7+ {[%clk 0:00:17]} 35... Kf5 {[%clk
0:00:23.9]} 36. Qxf7+ {[%clk 0:00:18.3]} 36... Nf6 {[%clk 0:00:25.1]} 37. Qxg7
{[%clk 0:00:18.6]} 37... Rg8 {[%clk 0:00:25.7]} 38. g4+ {[%clk 0:00:18]} 38...
Ke4 {[%clk 0:00:27]} 39. Qf7 {[%clk 0:00:15.6]} 39... h5 {[%clk 0:00:25.7]} 40.
f3+ {[%clk 0:00:09.2]} 40... Kxe3 {[%clk 0:00:23.2]} 41. Qa7+ {[%clk 0:00:08.6]}
41... Kf4 {[%clk 0:00:23.7]} 42. Qf2 {[%clk 0:00:09.2]} 42... Rc8 {[%clk
0:00:20.5]} 43. Re1 {[%clk 0:00:09.4]} 43... Qxf3 {[%clk 0:00:20.8]} 44. Bc1#
{[%clk 0:00:10.2]} 1-0

[Event "***Titled Tuesday 3|2 Blitz"]
[Site "Chess.com"]
[Date "2017.02.07"]
[Round "2"]
[White "Noukii"]
[Black "Mornar1951"]
[Result "1-0"]
[WhiteElo "2619"]
[BlackElo "2562"]
[TimeControl "180+2"]
[EndTime "13:26:57 PST"]
[Termination "Noukii won on time"]

1. d4 {[%clk 0:02:46.4]} 1... d5 {[%clk 0:03:00.9]} 2. Nf3 {[%clk 0:02:46.5]}
2... Nf6 {[%clk 0:03:00.7]} 3. c4 {[%clk 0:02:47.9]} 3... e6 {[%clk 0:03:01.5]}
4. g3 {[%clk 0:02:48.1]} 4... Bb4+ {[%clk 0:03:00.1]} 5. Bd2 {[%clk 0:02:48.8]}
5... Be7 {[%clk 0:03:01.2]} 6. Bg2 {[%clk 0:02:44.6]} 6... c6 {[%clk 0:03:02.4]}
7. O-O {[%clk 0:02:45.5]} 7... b6 {[%clk 0:03:03.4]} 8. Bf4 {[%clk 0:02:42.4]}
8... Ba6 {[%clk 0:02:57.1]} 9. Ne5 {[%clk 0:02:39.6]} 9... Nfd7 {[%clk
0:02:55.6]} 10. Nxd7 {[%clk 0:02:25.7]} 10... Nxd7 {[%clk 0:02:56.1]} 11. cxd5
{[%clk 0:02:27.1]} 11... cxd5 {[%clk 0:02:56.6]} 12. Nc3 {[%clk 0:02:28.5]}
12... O-O {[%clk 0:02:54.2]} 13. Qa4 {[%clk 0:02:28.8]} 13... Bb7 {[%clk
0:02:53.7]} 14. Rfc1 {[%clk 0:02:30.1]} 14... a6 {[%clk 0:02:52.8]} 15. Qb3
{[%clk 0:02:30.8]} 15... Rc8 {[%clk 0:02:41]} 16. a4 {[%clk 0:02:25.9]} 16...
Rc4 {[%clk 0:02:40]} 17. Qd1 {[%clk 0:02:09]} 17... Nf6 {[%clk 0:02:09.9]} 18.
Bf1 {[%clk 0:02:08.3]} 18... Rc6 {[%clk 0:01:58.4]} 19. Bg5 {[%clk 0:02:09.7]}
19... Qd7 {[%clk 0:01:48.3]} 20. Bxf6 {[%clk 0:02:08.5]} 20... Bxf6 {[%clk
0:01:48.2]} 21. e3 {[%clk 0:02:10.4]} 21... Rfc8 {[%clk 0:01:48.9]} 22. Bd3
{[%clk 0:02:09.2]} 22... R8c7 {[%clk 0:01:30.9]} 23. Ne2 {[%clk 0:01:59.5]}
23... g6 {[%clk 0:01:21.3]} 24. Rxc6 {[%clk 0:01:57.8]} 24... Rxc6 {[%clk
0:01:18.6]} 25. Rc1 {[%clk 0:01:55.1]} 25... Rxc1 {[%clk 0:01:12.1]} 26. Nxc1
{[%clk 0:01:57]} 26... Be7 {[%clk 0:00:58.6]} 27. Ne2 {[%clk 0:01:58.4]} 27...
Qc7 {[%clk 0:00:50.3]} 28. h4 {[%clk 0:01:40.9]} 28... Bd6 {[%clk 0:00:49.4]}
29. Kh2 {[%clk 0:01:28.3]} 29... Kg7 {[%clk 0:00:47.2]} 30. Ng1 {[%clk
0:01:28.3]} 30... a5 {[%clk 0:00:33.3]} 31. Ne2 {[%clk 0:01:26.4]} 31... Bb4
{[%clk 0:00:32.6]} 32. Nf4 {[%clk 0:01:25.8]} 32... Bd6 {[%clk 0:00:31.9]} 33.
Nh3 {[%clk 0:01:20]} 33... Bc6 {[%clk 0:00:27.8]} 34. Ng5 {[%clk 0:01:14.6]}
34... Qd7 {[%clk 0:00:25.4]} 35. b3 {[%clk 0:01:14]} 35... f6 {[%clk 0:00:20]}
36. Nf3 {[%clk 0:01:07.9]} 36... e5 {[%clk 0:00:21.3]} 37. dxe5 {[%clk
0:01:09.2]} 37... fxe5 {[%clk 0:00:23.2]} 38. Ng5 {[%clk 0:01:10.8]} 38... Be7
{[%clk 0:00:18]} 39. Nxh7 {[%clk 0:00:54.8]} 39... d4 {[%clk 0:00:15]} 40. Ng5
{[%clk 0:00:49.5]} 40... dxe3 {[%clk 0:00:13.7]} 41. fxe3 {[%clk 0:00:47.1]}
41... Bxg5 {[%clk 0:00:11.8]} 42. hxg5 {[%clk 0:00:49]} 42... Qd5 {[%clk
0:00:09.6]} 43. e4 {[%clk 0:00:50]} 43... Qd4 {[%clk 0:00:10.6]} 44. Qf1 {[%clk
0:00:51.1]} 44... Qb2+ {[%clk 0:00:08.8]} 45. Kh1 {[%clk 0:00:47.6]} 45... Qc3
{[%clk 0:00:08.5]} 46. Qf6+ {[%clk 0:00:48.3]} 46... Kh7 {[%clk 0:00:09.8]} 47.
Qf7+ {[%clk 0:00:47.9]} 47... Kh8 {[%clk 0:00:11.1]} 48. Qf8+ {[%clk 0:00:49.3]}
48... Kh7 {[%clk 0:00:11.7]} 49. Qh6+ {[%clk 0:00:51]} 49... Kg8 {[%clk
0:00:12.5]} 50. Bc4+ {[%clk 0:00:52.9]} 1-0